fUSD/lending_fUSD_20240329
["ID","MTS","AMOUNT","RATE_DAILY","PERIOD"]
[320894670,1711672246653,-151.0,0.00049315,120]
[320894673,1711672246663,-151.0,0.00049315,120]
[320894675,1711672246674,-151.0,0.00049315,120]
[320894677,1711672246683,-151.0,0.00049315,120]
[320894679,1711672246694,-151.0,0.00049315,120]
[320894680,1711672246704,-151.0,0.00049315,120]
[320894683,1711672246718,-151.0,0.00049315,120]
[320894685,1711672246729,-151.0,0.00049315,120]
[320894687,1711672246740,-151.0,0.00049315,60]
[320894689,1711672246750,-151.0,0.00049315,60]
[320894691,1711672246760,-151.0,0.00049315,60]
[320894693,1711672246770,-151.0,0.00049315,60]
[320894695,1711672246780,-151.0,0.00049315,60]
[320894697,1711672246790,-151.0,0.00049315,60]
[320894699,1711672246799,-151.0,0.00049315,60]
[320894701,1711672246809,-151.0,0.00049315,60]
[320894702,1711672246818,-151.0,0.00049315,60]
[320894704,1711672246827,-151.0,0.00049315,60]
[320894706,1711672246836,-151.0,0.00049315,60]
[320894708,1711672246846,-151.0,0.00049315,60]
[320894710,1711672246855,-151.0,0.00049315,60]
[320894713,1711672246866,-151.0,0.00049315,60]
[320894715,1711672246875,-151.0,0.00049315,60]
[320894717,1711672246886,-151.0,0.00049315,60]
[320894719,1711672246895,-151.0,0.00049315,60]
[320894721,1711672246904,-247.87584,0.00049315,60]
[320894723,1711672246913,-153.416299,0.00049315,120]
[320894724,1711672246922,-151.0,0.00049315,120]
[320894726,1711672246982,-151.0,0.00049315,120]
[320894727,1711672246991,-183.10667,0.00049315,120]
[320894729,1711672247001,-151.0,0.00049315,120]
[320894731,1711672247010,-151.0,0.00049315,120]
[320894733,1711672247019,-151.0,0.00049315,120]
[320894735,1711672247031,-151.0,0.00049315,120]
[320894737,1711672247040,-151.0,0.00049315,120]
[320894739,1711672247049,-151.0,0.00049315,120]
[320894741,1711672247058,-151.0,0.00049315,120]
[320894743,1711672247068,-151.0,0.00049315,120]
[320894745,1711672247077,-151.0,0.00049315,120]
[320894747,1711672247087,-151.0,0.00049315,120]
[320894749,1711672247097,-151.0,0.00049315,120]
[320894751,1711672247105,-151.0,0.00049315,120]
[320894753,1711672247115,-151.0,0.00049315,120]
[320894755,1711672247124,-151.0,0.00049315,120]
[320894757,1711672247134,-151.0,0.00049315,120]
[320894759,1711672247143,-289.123249,0.00049315,120]
[320894761,1711672247152,-151.0,0.00049315,120]
[320894763,1711672247161,-151.0,0.00049315,120]
[320894765,1711672247170,-151.0,0.00049315,120]
[320894767,1711672247179,-151.0,0.00049315,120]
[320894769,1711672247188,-151.0,0.00049315,120]
[320894771,1711672247197,-151.0,0.00049315,120]
[320894773,1711672247206,-151.0,0.00049315,120]
[320894775,1711672247215,-151.0,0.00049315,120]
[320894777,1711672247224,-151.0,0.00049315,120]
[320894779,1711672247234,-151.0,0.00049315,120]
[320894781,1711672247243,-151.0,0.00049315,120]
[320894783,1711672247253,-151.0,0.00049315,120]
[320894785,1711672247262,-151.0,0.00049315,120]
[320894787,1711672247270,-223.328698,0.00049315,120]
[320894789,1711672247279,-151.0,0.00049315,120]
[320894791,1711672247289,-151.0,0.00049315,120]
[320894793,1711672247298,-151.0,0.00049315,120]
[320894795,1711672247307,-151.0,0.00049315,120]
[320894797,1711672247316,-151.0,0.00049315,120]
[320894799,1711672247326,-151.0,0.00049315,120]
[320894801,1711672247335,-151.0,0.00049315,120]
[320894803,1711672247345,-151.0,0.00049315,120]
[320894805,1711672247354,-151.0,0.00049315,120]
[320894807,1711672247364,-151.0,0.00049315,120]
[320894809,1711672247374,-151.0,0.00049315,120]
[320894811,1711672247383,-151.0,0.00049315,120]
[320894813,1711672247392,-151.0,0.00049315,120]
[320894815,1711672247401,-151.0,0.00049315,120]
[320894817,1711672247411,-232.611662,0.00049315,120]
[320894819,1711672247419,-151.0,0.00049315,120]
[320894821,1711672247429,-1488.25758227,0.00049363,60]
[320894823,1711672247437,-1312.64463625,0.00049393,40]
[320894825,1711672247446,-1000.0,0.00049394,120]
[320894827,1711672247456,-540.5088291,0.00049394,2]
[320894829,1711672247465,-1519.8199475,0.00049395,4]
[320894831,1711672247474,-2224.15802563,0.00049395,4]
[320894842,1711672247754,-299.61937884,0.00049395,4]
[320894843,1711672248110,-688.08526901,0.00049395,4]
[320894844,1711672248133,-2835.41059659,0.00049395,4]
[320894845,1711672248857,-500.0,0.00049315,120]
[320894846,1711672248868,-500.0,0.00049315,120]
[320894847,1711672248878,-500.0,0.00049315,120]
[320894848,1711672248888,-500.0,0.00049315,120]
[320894849,1711672248901,-500.0,0.00049315,120]
[320894850,1711672248910,-992.45769905,0.00049395,4]
[320894851,1711672249903,-362.09964363,0.00049314,2]
[320894852,1711672263642,259.88151511,0.0002355,2]
[320894853,1711672311213,7418.21671407,0.0002355,2]
[320894854,1711672311233,8000.0,0.0002355,2]
[320894855,1711672311251,8000.0,0.0002355,2]
[320894856,1711672311270,8000.0,0.0002355,2]
[320894857,1711672311288,8000.0,0.0002355,2]
[320894858,1711672311308,2976.31347471,0.0002355,2]
[320894859,1711672329146,5023.68652529,0.0002355,2]
[320894860,1711672329168,8000.0,0.0002355,2]
[320894861,1711672329189,8000.0,0.0002355,2]
[320894862,1711672329209,8000.0,0.0002355,2]
[320894863,1711672329228,8000.0,0.0002355,2]
[320894864,1711672329247,5370.84366349,0.0002355,2]
[320894865,1711672330660,10000.0,0.0003,30]
[320894866,1711672353161,1340.78294385,0.0002355,2]
[320894867,1711672586001,10000.0,0.0003,30]
[320894868,1711673078416,-404.0,0.0003,4]
[320894869,1711673132122,-0.51729188,0.0003,4]
[320894870,1711673132144,-149.48270812,0.00034548,10]
[320894871,1711673153120,-0.51729188,0.00034548,10]
[320894872,1711673153143,-668.48270812,0.0004,15]
[320894881,1711673431885,-1.38199646,0.0004,15]
[320894882,1711673431895,-286.54117054,0.0004,2]
[320894883,1711673431943,-11068.30543595,0.0004,2]
[320894884,1711673431954,-287.2382675,0.00043999,4]
[320894885,1711673431963,-19269.30223252,0.00044,2]
[320894886,1711673431973,-168.80419149,0.00044907,2]
[320894887,1711673431983,-216.85,0.00045007,2]
[320894888,1711673431992,-600.0,0.00046,47]
[320894889,1711673432002,-1101.67,0.00046678,2]
[320894890,1711673432012,-359.12,0.0004672,2]
[320894891,1711673432021,-200.0,0.00046733,2]
[320894892,1711673432031,-250.0,0.00046778,112]
[320894893,1711673432045,-500.0,0.00046785,2]
[320894894,1711673432055,-1852.42,0.00046794,2]
[320894895,1711673432064,-500.0,0.00046815,2]
[320894896,1711673432074,-171.08,0.00046824,120]
[320894897,1711673432085,-2572.25,0.00046837,2]
[320894898,1711673432095,-380.77,0.00046863,2]
[320894899,1711673432104,-2080.21,0.00046863,2]
[320894900,1711673432114,-200.0,0.00046908,2]
[320894901,1711673432124,-250.0,0.00046908,120]
[320894902,1711673432134,-150.99,0.00046908,2]
[320894903,1711673432144,-152.0,0.00046953,3]
[320894904,1711673432153,-368.85,0.00046997,15]
[320894905,1711673432163,-250.0,0.00046997,120]
[320894906,1711673432174,-2998.01,0.00046997,2]
[320894907,1711673432184,-499.99,0.00046997,2]
[320894908,1711673432194,-17837.7,0.00046997,2]
[320894909,1711673432203,-600.0,0.00047,48]
[320894910,1711673432213,-23890.0,0.0004704,2]
[320894911,1711673432223,-620.90110907,0.00047046,2]
[320894912,1711673432235,-736.9157082,0.00047046,2]
[320894913,1711673432247,-369.95948262,0.00047046,2]
[320894914,1711673432260,-467.5,0.00047046,2]
[320894915,1711673432326,-878.25370011,0.00047046,2]
[320894916,1711673432336,-686.77,0.00047078,2]
[320894917,1711673432346,-168.80419149,0.00047097,2]
[320894918,1711673432356,-6.85067758,0.00047102,2]
[320894919,1711673432368,-143.14932242,0.00047102,2]
[320894920,1711673432378,-296.47315716,0.00047258,2]
[320894921,1711673432389,-584.32708965,0.00047258,2]
[320894922,1711673432776,-526.88937497,0.00047258,2]
[320894931,1711673433033,-438.97877864,0.00047258,2]
[320894933,1711673433048,-20290.24159958,0.00047258,2]
[320894935,1711673433058,-216.85,0.00047271,2]
[320894937,1711673433067,-154.11,0.00047349,2]
[320894939,1711673433077,-206.94,0.00047402,120]
[320894941,1711673433086,-4865.60065083,0.00047547,2]
[320894946,1711673433118,-2064.66934917,0.00047547,2]
[320894948,1711673433129,-154.58347963,0.00047622,30]
[320894950,1711673433138,-156.84423319,0.00047769,30]
[320894951,1711673433148,-86.4674654,0.00047809,2]
[320894954,1711673433161,-70.5025346,0.00047809,2]
[320894956,1711673433173,-154.58347963,0.00047834,30]
[320894958,1711673433185,-159.37394239,0.00047864,30]
[320894960,1711673433195,-13903.3553897,0.00048,2]
[320894962,1711673433206,-3115.68795012,0.00048,30]
[320894963,1711673433238,-1408.78304988,0.00048,30]
[320894964,1711673433250,-600.0,0.00048,49]
[320894965,1711673433261,-166.71056118,0.00048003,30]
[320894966,1711673433270,-61.51382082,0.00048048,2]
[320894967,1711673433282,-95.45617918,0.00048048,2]
[320894968,1711673433292,-214.09,0.00048081,2]
[320894969,1711673433302,-150.23076923,0.00048202,30]
[320894970,1711673433311,-169.75,0.00048323,2]
[320894971,1711673433320,-800.0,0.00048323,2]
[320894972,1711673433330,-200.0,0.00048323,2]
[320894973,1711673433339,-924.23,0.00048441,2]
[320894974,1711673433349,-166.19,0.00048735,2]
[320894975,1711673433357,-150.23076923,0.00048736,30]
[320894976,1711673433366,-154.58347963,0.00048838,30]
[320894977,1711673433375,-2547.73880273,0.00048898,2]
[320894978,1711673433387,-591.826501,0.00048898,2]
[320894979,1711673433398,-69.5272463,0.00048898,2]
[320894980,1711673433407,-7282.47036541,0.00048898,2]
[320894981,1711673433417,-164.28334783,0.000489,3]
[320894982,1711673433427,-378.33091,0.000489,44]
[320894983,1711673433436,-14480.71432479,0.00048998,2]
[320894984,1711673433475,-967.59840314,0.00048998,2]
[320894985,1711673433487,-3184.93799676,0.00048998,2]
[320894986,1711673433502,-1221.44374651,0.00048998,2]
[320894987,1711673433513,-865.970507,0.00048998,2]
[320895004,1711673437838,-8205.96690525,0.00048998,2]
[320895005,1711673438006,-271.5,0.00048998,2]
[320895006,1711673438118,-129533.23269149,0.00048998,2]
[320895007,1711673438127,-800.0,0.00048998,25]
[320895008,1711673438137,-800.0,0.00048999,25]
[320895009,1711673438146,-500.0,0.00048999,30]
[320895010,1711673438155,-200.0,0.00048999,30]
[320895011,1711673438165,-650.08656319,0.00049,3]
[320895012,1711673438175,-2500.0,0.00049,120]
[320895014,1711673438184,-600.0,0.00049,50]
[320895016,1711673438193,-700.0,0.00049003,30]
[320895017,1711673438202,-328.87377498,0.00049013,4]
[320895018,1711673438212,-428.08293573,0.00049013,4]
[320895019,1711673438221,-256.92634354,0.00049013,4]
[320895020,1711673438230,-321.70137783,0.00049013,30]
[320895021,1711673438239,-300.63916013,0.00049013,4]
[320895022,1711673438248,-278.90887224,0.00049014,4]
[320895023,1711673438257,-399.10350262,0.00049014,120]
[320895024,1711673438266,-2594.54354498,0.00049014,4]
[320895025,1711673438275,-130584.11024252,0.000492,120]
[320895026,1711673438284,-314.60426959,0.00049205,2]
[320895027,1711673438293,-5000.0,0.00049215,3]
[320895028,1711673438302,-1952.37685798,0.00049239,2]
[320895029,1711673438312,-1952.37685798,0.00049239,2]
[320895030,1711673438321,-379.99,0.00049243,2]
[320895031,1711673438330,-1952.37685798,0.00049249,2]
[320895033,1711673438339,-155.26708591,0.00049265,30]
[320895034,1711673438348,-1952.37685798,0.00049272,2]
[320895036,1711673438358,-700.0,0.00049277,30]
[320895038,1711673438367,-168.80419149,0.00049287,2]
[320895039,1711673438377,-98650.73089994,0.000493,2]
[320895040,1711673438386,-165.44874872,0.00049305,2]
[320895041,1711673438395,-457.91594376,0.00049312,2]
[320895042,1711673438404,-151.032909,0.00049313,99]
[320895043,1711673438414,-595.87993291,0.00049314,60]
[320895044,1711673438423,-315.73814616,0.00049314,120]
[320895045,1711673438434,-503.12066887,0.00049315,120]
[320895046,1711673438443,-463.06,0.00049315,120]
[320895047,1711673438452,-500.0,0.00049315,120]
[320895048,1711673438461,-510.95,0.00049315,120]
[320895049,1711673438470,-500.0,0.00049315,120]
[320895050,1711673438480,-500.0,0.00049315,120]
[320895051,1711673438489,-500.0,0.00049315,120]
[320895052,1711673438498,-500.0,0.00049315,120]
[320895053,1711673438507,-500.0,0.00049315,120]
[320895054,1711673438516,-369.70834819,0.00049315,120]
[320895055,1711673438525,-500.0,0.00049315,120]
[320895056,1711673438535,-500.0,0.00049315,120]
[320895057,1711673438545,-500.0,0.00049315,120]
[320895058,1711673438555,-500.0,0.00049315,120]
[320895059,1711673438564,-500.0,0.00049315,120]
[320895060,1711673438574,-510.06812221,0.00049315,120]
[320895061,1711673438583,-512.46811759,0.00049315,120]
[320895062,1711673438592,-628.94518937,0.00049315,120]
[320895063,1711673438602,-500.0,0.00049315,120]
[320895064,1711673438611,-500.0,0.00049315,120]
[320895065,1711673438621,-402.79775105,0.00049315,120]
[320895066,1711673438630,-500.0,0.00049315,120]
[320895067,1711673438639,-500.0,0.00049315,120]
[320895068,1711673438648,-551.44,0.00049315,120]
[320895069,1711673438658,-500.0,0.00049315,120]
[320895070,1711673438667,-500.0,0.00049315,120]
[320895071,1711673438678,-491.51,0.00049315,120]
[320895072,1711673438687,-500.0,0.00049315,120]
[320895073,1711673438696,-170.32,0.00049315,120]
[320895074,1711673438705,-500.0,0.00049315,120]
[320895075,1711673438715,-500.0,0.00049315,120]
[320895076,1711673438724,-500.0,0.00049315,120]
[320895077,1711673438733,-500.0,0.00049315,120]
[320895078,1711673438742,-500.0,0.00049315,120]
[320895079,1711673438752,-545.6,0.00049315,120]
[320895080,1711673438764,-500.0,0.00049315,120]
[320895081,1711673438774,-500.0,0.00049315,120]
[320895082,1711673438783,-500.0,0.00049315,120]
[320895083,1711673438792,-500.0,0.00049315,120]
[320895084,1711673438802,-500.0,0.00049315,120]
[320895085,1711673438811,-204.48,0.00049315,120]
[320895086,1711673438820,-500.0,0.00049315,120]
[320895087,1711673438829,-500.0,0.00049315,120]
[320895088,1711673438838,-500.0,0.00049315,120]
[320895089,1711673438847,-500.0,0.00049315,120]
[320895090,1711673438856,-315.82,0.00049315,120]
[320895091,1711673438865,-500.0,0.00049315,120]
[320895092,1711673438874,-500.0,0.00049315,120]
[320895093,1711673438883,-610.84,0.00049315,120]
[320895094,1711673438892,-630.0,0.00049315,120]
[320895095,1711673438901,-408.6,0.00049315,120]
[320895096,1711673438910,-268.54,0.00049315,120]
[320895097,1711673438919,-512.42,0.00049315,120]
[320895098,1711673438929,-500.0,0.00049315,120]
[320895099,1711673438938,-500.0,0.00049315,120]
[320895100,1711673438948,-500.0,0.00049315,120]
[320895101,1711673438958,-500.0,0.00049315,120]
[320895102,1711673438967,-500.0,0.00049315,120]
[320895103,1711673438975,-500.0,0.00049315,120]
[320895104,1711673438985,-500.0,0.00049315,120]
[320895105,1711673438994,-500.0,0.00049315,120]
[320895106,1711673439003,-195.76,0.00049315,120]
[320895107,1711673439012,-500.0,0.00049315,120]
[320895108,1711673439022,-513.43517926,0.00049315,120]
[320895109,1711673439031,-500.0,0.00049315,120]
[320895110,1711673439044,-500.0,0.00049315,120]
[320895111,1711673439053,-500.0,0.00049315,120]
[320895112,1711673439063,-605.71,0.00049315,120]
[320895113,1711673439074,-500.0,0.00049315,120]
[320895114,1711673439084,-508.69498406,0.00049315,120]
[320895115,1711673439094,-500.0,0.00049315,120]
[320895116,1711673439103,-500.0,0.00049315,120]
[320895117,1711673439114,-500.0,0.00049315,120]
[320895118,1711673439124,-500.0,0.00049315,120]
[320895119,1711673439135,-510.48078272,0.00049315,120]
[320895120,1711673439144,-507.02741871,0.00049315,120]
[320895121,1711673439154,-500.0,0.00049315,120]
[320895122,1711673439163,-500.0,0.00049315,120]
[320895123,1711673439172,-500.0,0.00049315,120]
[320895124,1711673439181,-500.0,0.00049315,120]
[320895125,1711673439191,-500.0,0.00049315,120]
[320895126,1711673439200,-500.0,0.00049315,120]
[320895127,1711673439209,-525.85,0.00049315,120]
[320895128,1711673439218,-500.0,0.00049315,120]
[320895129,1711673439228,-500.0,0.00049315,120]
[320895130,1711673439237,-500.0,0.00049315,120]
[320895131,1711673439247,-735.85,0.00049315,120]
[320895132,1711673439256,-500.0,0.00049315,120]
[320895133,1711673439265,-500.0,0.00049315,120]
[320895134,1711673439276,-500.0,0.00049315,120]
[320895135,1711673439289,-500.0,0.00049315,120]
[320895136,1711673439299,-500.0,0.00049315,120]
[320895137,1711673439308,-500.0,0.00049315,120]
[320895138,1711673439317,-536.7,0.00049315,120]
[320895139,1711673439327,-611.85,0.00049315,120]
[320895140,1711673439336,-500.0,0.00049315,120]
[320895141,1711673439346,-500.0,0.00049315,120]
[320895142,1711673439355,-500.0,0.00049315,120]
[320895143,1711673439364,-500.0,0.00049315,120]
[320895144,1711673439373,-578.03,0.00049315,120]
[320895145,1711673439382,-500.0,0.00049315,120]
[320895146,1711673439391,-500.0,0.00049315,120]
[320895147,1711673439400,-500.0,0.00049315,120]
[320895148,1711673439410,-500.0,0.00049315,120]
[320895149,1711673439419,-500.0,0.00049315,120]
[320895150,1711673439429,-500.0,0.00049315,15]
[320895151,1711673439438,-500.0,0.00049315,120]
[320895152,1711673439448,-500.0,0.00049315,120]
[320895153,1711673439457,-623.3,0.00049315,30]
[320895154,1711673439466,-500.0,0.00049315,7]
[320895155,1711673439476,-500.0,0.00049315,120]
[320895156,1711673439485,-500.0,0.00049315,120]
[320895157,1711673439494,-500.0,0.00049315,120]
[320895158,1711673439503,-500.0,0.00049315,120]
[320895159,1711673439512,-500.0,0.00049315,120]
[320895160,1711673439521,-500.0,0.00049315,120]
[320895161,1711673439531,-500.0,0.00049315,120]
[320895162,1711673439540,-500.0,0.00049315,120]
[320895163,1711673439549,-500.0,0.00049315,120]
[320895164,1711673439558,-500.0,0.00049315,120]
[320895165,1711673439567,-500.0,0.00049315,120]
[320895166,1711673439576,-500.0,0.00049315,120]
[320895167,1711673439586,-500.0,0.00049315,120]
[320895168,1711673439595,-500.0,0.00049315,120]
[320895169,1711673439604,-500.0,0.00049315,120]
[320895170,1711673439613,-500.0,0.00049315,120]
[320895171,1711673439622,-500.0,0.00049315,120]
[320895172,1711673439631,-500.0,0.00049315,120]
[320895173,1711673439640,-500.0,0.00049315,120]
[320895174,1711673439650,-500.0,0.00049315,120]
[320895175,1711673439659,-500.0,0.00049315,120]
[320895176,1711673439668,-500.0,0.00049315,120]
[320895177,1711673439679,-500.0,0.00049315,120]
[320895179,1711673439698,-500.0,0.00049315,120]
[320895180,1711673439710,-500.0,0.00049315,120]
[320895181,1711673439720,-500.0,0.00049315,120]
[320895182,1711673439730,-565.63,0.00049315,120]
[320895183,1711673439739,-500.0,0.00049315,120]
[320895185,1711673439749,-500.0,0.00049315,120]
[320895187,1711673439758,-500.0,0.00049315,120]
[320895188,1711673439768,-500.0,0.00049315,120]
[320895189,1711673439777,-271.05,0.00049315,120]
[320895190,1711673439787,-500.0,0.00049315,120]
[320895191,1711673439797,-500.0,0.00049315,120]
[320895192,1711673439806,-500.0,0.00049315,120]
[320895193,1711673439816,-265.55,0.00049315,120]
[320895194,1711673440063,-500.0,0.00049315,120]
[320895195,1711673440073,-500.0,0.00049315,120]
[320895196,1711673440082,-500.0,0.00049315,120]
[320895197,1711673440092,-397.74,0.00049315,120]
[320895198,1711673440101,-500.0,0.00049315,120]
[320895199,1711673440110,-504.12047471,0.00049315,120]
[320895200,1711673440119,-500.0,0.00049315,120]
[320895201,1711673440131,-500.0,0.00049315,120]
[320895202,1711673440141,-500.0,0.00049315,120]
[320895203,1711673440150,-500.0,0.00049315,120]
[320895204,1711673440159,-500.0,0.00049315,120]
[320895205,1711673440169,-500.0,0.00049315,120]
[320895206,1711673440179,-500.0,0.00049315,120]
[320895207,1711673440189,-500.0,0.00049315,120]
[320895208,1711673440199,-504.3557297,0.00049315,120]
[320895209,1711673440208,-500.0,0.00049315,120]
[320895210,1711673440218,-500.0,0.00049315,120]
[320895211,1711673440227,-526.13262179,0.00049315,120]
[320895212,1711673440236,-500.0,0.00049315,2]
[320895213,1711673440246,-500.0,0.00049315,120]
[320895214,1711673440255,-500.0,0.00049315,120]
[320895215,1711673440264,-510.32476069,0.00049315,120]
[320895216,1711673440273,-500.0,0.00049315,120]
[320895217,1711673440283,-500.0,0.00049315,120]
[320895218,1711673440292,-500.0,0.00049315,120]
[320895219,1711673440302,-500.0,0.00049315,120]
[320895220,1711673440312,-505.06358911,0.00049315,120]
[320895221,1711673440325,-500.0,0.00049315,120]
[320895222,1711673440334,-500.0,0.00049315,120]
[320895223,1711673440344,-500.0,0.00049315,120]
[320895224,1711673440354,-500.0,0.00049315,120]
[320895225,1711673440363,-500.0,0.00049315,120]
[320895226,1711673440373,-500.0,0.00049315,120]
[320895227,1711673440382,-500.0,0.00049315,120]
[320895228,1711673440392,-500.0,0.00049315,120]
[320895229,1711673440401,-500.0,0.00049315,120]
[320895230,1711673440411,-590.48,0.00049315,120]
[320895231,1711673440420,-500.0,0.00049315,120]
[320895232,1711673440430,-425.57,0.00049315,120]
[320895233,1711673440439,-500.0,0.00049315,120]
[320895234,1711673440448,-500.0,0.00049315,120]
[320895235,1711673440457,-385.94307758,0.00049315,120]
[320895236,1711673440466,-500.0,0.00049315,120]
[320895237,1711673440475,-500.0,0.00049315,120]
[320895238,1711673440485,-500.0,0.00049315,120]
[320895239,1711673440495,-649.52,0.00049315,120]
[320895240,1711673440505,-500.91,0.00049315,120]
[320895241,1711673440515,-500.0,0.00049315,120]
[320895242,1711673440524,-500.0,0.00049315,120]
[320895243,1711673440533,-500.0,0.00049315,120]
[320895244,1711673440543,-500.0,0.00049315,120]
[320895245,1711673440554,-500.0,0.00049315,120]
[320895246,1711673440563,-499.07020065,0.00049315,120]
[320895247,1711673440574,-500.0,0.00049315,120]
[320895248,1711673440584,-500.0,0.00049315,120]
[320895249,1711673440597,-500.0,0.00049315,120]
[320895250,1711673440606,-500.0,0.00049315,120]
[320895251,1711673440618,-500.0,0.00049315,120]
[320895252,1711673440628,-500.0,0.00049315,120]
[320895253,1711673440638,-500.0,0.00049315,120]
[320895254,1711673440648,-500.0,0.00049315,120]
[320895255,1711673440659,-500.0,0.00049315,120]
[320895256,1711673440669,-500.0,0.00049315,120]
[320895257,1711673440679,-500.0,0.00049315,120]
[320895258,1711673440688,-500.0,0.00049315,120]
[320895259,1711673440698,-500.0,0.00049315,120]
[320895260,1711673440708,-500.0,0.00049315,120]
[320895261,1711673440718,-500.0,0.00049315,120]
[320895262,1711673440729,-363.58473754,0.00049315,120]
[320895263,1711673440739,-500.0,0.00049315,120]
[320895264,1711673440749,-500.0,0.00049315,120]
[320895265,1711673440758,-500.0,0.00049315,120]
[320895266,1711673440769,-500.0,0.00049315,120]
[320895267,1711673440779,-500.0,0.00049315,120]
[320895268,1711673440789,-500.0,0.00049315,120]
[320895269,1711673440799,-500.0,0.00049315,120]
[320895270,1711673440808,-500.0,0.00049315,120]
[320895271,1711673440818,-500.0,0.00049315,120]
[320895272,1711673440828,-500.0,0.00049315,120]
[320895273,1711673440839,-178.66,0.00049315,120]
[320895274,1711673440850,-500.0,0.00049315,120]
[320895275,1711673440862,-197.28,0.00049315,120]
[320895276,1711673440875,-500.0,0.00049315,120]
[320895277,1711673440885,-500.0,0.00049315,120]
[320895278,1711673440894,-500.0,0.00049315,120]
[320895279,1711673440904,-500.0,0.00049315,120]
[320895280,1711673440914,-500.0,0.00049315,30]
[320895281,1711673440924,-500.0,0.00049315,120]
[320895282,1711673440935,-500.0,0.00049315,120]
[320895283,1711673440945,-500.0,0.00049315,120]
[320895284,1711673440955,-752.88,0.00049315,120]
[320895285,1711673440965,-590.04,0.00049315,120]
[320895286,1711673440975,-299.19,0.00049315,120]
[320895287,1711673440984,-500.0,0.00049315,120]
[320895288,1711673440994,-500.0,0.00049315,120]
[320895289,1711673441003,-500.0,0.00049315,120]
[320895290,1711673441013,-500.34,0.00049315,120]
[320895291,1711673441022,-500.0,0.00049315,120]
[320895292,1711673441032,-500.0,0.00049315,120]
[320895293,1711673441043,-500.0,0.00049315,120]
[320895294,1711673441053,-500.0,0.00049315,120]
[320895295,1711673441062,-500.0,0.00049315,120]
[320895296,1711673441072,-500.0,0.00049315,120]
[320895297,1711673441082,-500.0,0.00049315,120]
[320895298,1711673441091,-500.0,0.00049315,120]
[320895299,1711673441100,-500.0,0.00049315,120]
[320895300,1711673441110,-535.8,0.00049315,120]
[320895301,1711673441122,-506.56,0.00049315,120]
[320895302,1711673441132,-500.0,0.00049315,120]
[320895303,1711673441141,-500.0,0.00049315,120]
[320895304,1711673441151,-500.0,0.00049315,120]
[320895305,1711673441161,-500.0,0.00049315,120]
[320895306,1711673441170,-500.0,0.00049315,120]
[320895307,1711673441180,-500.0,0.00049315,120]
[320895308,1711673441189,-500.0,0.00049315,120]
[320895309,1711673441199,-500.0,0.00049315,120]
[320895310,1711673441208,-500.0,0.00049315,120]
[320895311,1711673441218,-171.27,0.00049315,120]
[320895312,1711673441228,-511.11,0.00049315,120]
[320895313,1711673441237,-500.0,0.00049315,120]
[320895314,1711673441247,-500.0,0.00049315,120]
[320895315,1711673441257,-500.0,0.00049315,120]
[320895316,1711673441267,-500.0,0.00049315,120]